Cogmind - Beta 17.1 @@@ ROGUE MODE // 2026.09.17 @ 20:08:25 Player: MrFartsburg Result: Destroyed by H-55 Commando with Gauss Rifle Performance ------------- Evolutions (2) 1000 Regions Visited (3) 600 Robots Destroyed (57) 285 Value Destroyed (1635) 1635 Prototype IDs (6) 120 Alien Tech Used (0) 0 Bonus (0) 0 TOTAL SCORE: 3640 Bonus ------- None Cogmind --------- Core Integrity 0/550 Matter 265/300 Energy 280/280 System Corruption 0% Temperature Cool (0) Movement Core (550) Ox10 Location -8/Materials Parts ------- > --- POWER (2) -------- Heavy Ion Engine > --- PROPULSION (3) --- (None) > --- UTILITY (4) ------ Large Storage Unit Machine Analyzer Core Analyzer > --- WEAPON (2) ------- Heavy Particle Gun > --- INVENTORY (15) --- Assault Rifle Autogun Enhanced Autogun Peak State ------------ > --- POWER ------------ Light Nuclear Core Light Nuclear Core > --- PROPULSION ------- Carbon-fiber Leg Carbon-fiber Leg Carbon-fiber Leg > --- UTILITY ---------- Large Storage Unit Core Analyzer Layered Light Armor Plating System Restoration Module > --- WEAPON ----------- Heavy Particle Gun Gauss Rifle > --- INVENTORY -------- Aluminum Leg Aluminum Leg Aluminum Leg Heavy Particle Gun Ion Cannon Assault Rifle Autogun Enhanced Autogun Enhanced Autogun [Rating: 38] Favorites ----------- Power Improved Ion Engine Engine Improved Ion Engine Power Core Light Nuclear Core Propulsion Carbon-fiber Leg Treads Light Treads Leg Carbon-fiber Leg Utility Medium Storage Unit Device System Restoration Module Storage Medium Storage Unit Processor Advanced Visual Processing Unit Protection Hardened Medium Armor Plating Weapon Ion Cannon Energy Gun Heavy Particle Gun Energy Cannon Ion Cannon Ballistic Gun Improved Assault Rifle Launcher Grenade Launcher Build | -11 -10 -9 -8 ------- Run | Yrd Mat Mat Mat Slots Evolved 4 | . . 2 2 Power 1 | . . 1 . Propulsion 1 | . . . 1 Utility 2 | . . 1 1 Weapon . | . . . . Parts Attached 53 | 5 6 14 28 Power 13 | 1 1 4 7 Engine 11 | 1 1 4 5 Core 2 | . . . 2 Reactor . | . . . . Propulsion 14 | 2 2 4 6 Treads 2 | . 2 . . Leg 12 | 2 . 4 6 Wheel . | . . . . Hover . | . . . . Flight . | . . . . Utility 12 | . 1 4 7 Device 1 | . . . 1 Storage 2 | . 1 . 1 Processor 4 | . . 2 2 Hackware . | . . . . Protection 5 | . . 2 3 Artifact . | . . . . Weapon 14 | 2 2 2 8 Energy Gun 2 | . . . 2 Energy Cannon 3 | . 1 1 1 Ballistic Gun 8 | 2 . 1 5 Ballistic Cannon . | . . . . Launcher 1 | . 1 . . Special Weapon . | . . . . Impact Weapon . | . . . . Slashing Weapon . | . . . . Piercing Weapon . | . . . . Special Melee Weapon . | . . . . Unidentified Prototypes 4 | . . 1 3 Parts Lost 35 | . 2 5 28 Power 11 | . 1 1 9 Propulsion 12 | . . 2 10 Utility 5 | . . 2 3 Weapon 7 | . 1 . 6 Highest Loss Streak 11 | . 1 4 11 To Critical Strikes . | . . . . Average Backups 7 | 1 3 6 8 Power . | . . . . Propulsion 2 | . 1 2 2 Utility . | . . . 1 Weapon 3 | . 1 2 4 Tool/Special . | . . . . Unused Backups 6 | . . 1 5 Power . | . . . . Propulsion . | . . . . Utility 2 | . . . 2 Weapon 4 | . . 1 3 Tool/Special . | . . . . Average Slot Usage (%) 90 | . 77 89 94 Engine 14 | . 12 21 9 Core 3 | . . . 6 Treads 2 | . 2 6 . Leg 21 | . 25 14 25 Device 1 | . . . 3 Storage 9 | . 9 11 9 Processor 9 | . . 6 14 Protection 7 | . . 6 8 Energy Gun 1 | . . . 3 Energy Cannon 7 | . 4 11 5 Ballistic Gun 10 | . 18 10 9 Peak Build Rating 38 | 5 6 24 38 Average Rating 22 | 4 5 15 30 On Entrance 8 | . 5 5 24 Avg Prop Armor Cover (%) . | . . . . Naked Turns . | . . . . Heaviest Build 46 | 9 19 36 46 Greatest Support 45 | 20 40 40 45 Greatest Overweight (x) 10 | . 1 6 10 Average Overweight (x) . | . . . . Largest Inventory Capacity 15 | 5 10 10 15 Average Capacity 11 | 5 8 10 13 Most Carried 15 | 3 5 10 15 Average Carried 7 | 1 3 6 8 Final Capacity 15 | 5 10 10 15 Final Carried 10 | 3 4 10 3 Class Distribution -------------------- 63% | Mutant 36% | Scavenger-Mutant Dominant Class ---------------- Mutant | -10/Materials Mutant | -9/Materials Scavenger-Mutant | -8/Materials Resources | -11 -10 -9 -8 ----------- Run | Yrd Mat Mat Mat Matter Collected 1534 | 246 89 489 710 Remotely . | . . . . Salvage Created 2107 | . 190 695 1222 Parts 128 | . 20 39 69 Haulers Intercepted 4 | . 1 1 2 Recyclers Shooed 2 | . . 2 . Parts Field Recycled . | . . . . Retrieved Matter . | . . . . Parts Self-Destructed . | . . . . Prevented . | . . . . Parts Restored . | . . . . Kills | -11 -10 -9 -8 ------- Run | Yrd Mat Mat Mat Combat Hostiles Destroyed 44 | . 6 13 25 Guns 28 | . 5 6 17 Cannons 15 | . . 7 8 AOE 1 | . 1 . . Classes Destroyed 9 | . 5 1 3 Worker 6 | . 2 2 2 Builder 2 | . 1 . 1 Hauler 4 | . 1 1 2 Watcher 1 | . . . 1 Swarmer 10 | . 3 . 7 Grunt 24 | . 3 7 14 Duelist 1 | . . . 1 Sentry 8 | . . 6 2 Hunter 1 | . . . 1 Best Kill Streak 7 | . 4 6 7 Combat Bots Only 6 | . 3 5 6 Max Kills in Single Turn 2 | . 2 2 2 Gunslinging 1 | . . . 1 Exploded 1 | . 1 . . Melee . | . . . . Uniques/NPCs Destroyed . | . . . . Combat | -11 -10 -9 -8 -------- Run | Yrd Mat Mat Mat Hostile Shots Fired 462 | . 38 120 304 Missed 102 | . 8 23 71 Hits 360 | . 30 97 233 Melee 2 | . . . 2 Projectile 358 | . 30 97 231 Critical Strikes 9 | . . . 9 Damage Taken 4770 | . 387 1185 3198 Core 679 | . 24 105 550 Absorbed by Shields . | . . . . Redirected to Shielding 37 | . . . 37 Core Remaining (%) 87 | 100 90 73 . Volleys Fired 152 | . 25 42 85 Largest 2 | . 2 2 2 Hottest 115 | . 80 83 115 Shots Fired 291 | . 49 84 158 Gun 188 | . 35 42 111 Cannon 98 | . 9 42 47 Launcher 5 | . 5 . . Special . | . . . . Kinetic 163 | . 35 42 86 Thermal 123 | . 9 42 72 Explosive 5 | . 5 . . Electromagnetic . | . . . . Robot Hit Streak 12 | . 6 12 10 Robot Miss Streak 5 | . 3 2 5 Penetration Max 1 | . . . 1 Secondary Targets 1 | . . . 1 Max Gunslinging Chain 1 | . . . 1 Shots Hit Robots 170 | . 23 61 86 Core Hits 85 | . 14 20 51 Critical Kills . | . . . . Critical Parts Destroyed 1 | . . . 1 Critical Strikes 2 | . . . 2 Burn 1 | . . . 1 Destroy 1 | . . . 1 Melee Attacks . | . . . . Impact . | . . . . Slashing . | . . . . Piercing . | . . . . Sneak Attacks . | . . . . Combat Hostiles . | . . . . Follow-up Attacks . | . . . . Damage Inflicted 3357 | . 491 1080 1786 Guns 1849 | . 214 462 1173 Cannons 1205 | . 70 579 556 Explosions 207 | . 207 . . Melee . | . . . . Ramming 96 | . . 39 57 Kinetic 1496 | . 214 462 820 Thermal 1558 | . 70 579 909 Explosive 207 | . 207 . . Electromagnetic . | . . . . Impact . | . . . . Slashing . | . . . . Piercing . | . . . . Highest Corruption . | . . . . Average Corruption . | . . . . Corruption Purged . | . . . . Corruption Blocked . | . . . . Overload Shots . | . . . . Overflow Damage 11 | . 2 7 2 Projectiles 9 | . . 7 2 Explosions 2 | . 2 . . Melee . | . . . . Knockbacks 2 | . . 2 . Impact 2 | . . 2 . Kinetic . | . . . . Secondary . | . . . . Self-Inflicted Damage 30 | . 30 . . Shots 3 | . 3 . . Rammed . | . . . . Targets Rammed 14 | . . 6 8 Kicked 14 | . . 6 8 Crushed . | . . . . Highest Temperature 613 | . 84 481 613 Average Temperature 182 | . 38 185 192 Received Heat Transfer 1929 | . 114 564 1251 Effects 34 | . . 5 29 Shutdowns 14 | . . 2 12 Energy Bleed 3 | . . . 3 Interference 4 | . . . 4 Matter Decay 5 | . . 3 2 Short Circuit 2 | . . . 2 Damage (minor) 1 | . . . 1 Damage (major) 5 | . . . 5 Siege Activations . | . . . . Martial Activations . | . . . . Shielding Activations . | . . . . Robots Disrupted . | . . . . Combat Hostiles . | . . . . Robots Corrupted . | . . . . Combat Hostiles . | . . . . Parts Fried . | . . . . Impact Corruptions . | . . . . Robots Melted . | . . . . Combat Hostiles . | . . . . Parts Melted 3 | . . . 3 Heat Transferred 2923 | . 148 1110 1665 Parts Sabotaged . | . . . . Parts Stolen . | . . . . Parts Stripped . | . . . . Power Chain Reactions . | . . . . Alert | -11 -10 -9 -8 ------- Run | Yrd Mat Mat Mat Maximum Alert Level 1 | . . . 1 Low Security (%) 94 | 100 100 100 88 Level 1 5 | . . . 11 Level 2 . | . . . . Level 3 . | . . . . Level 4 . | . . . . Level 5 . | . . . . High Security . | . . . . Max Security . | . . . . Peak Influence 244 | . 105 181 244 Initial 66 | . . 29 66 Average 96 | . 64 61 132 Influence Increases 1436 | . 192 508 736 Destroy 0b10 Robot/C 880 | . 120 260 500 Destroy 0b10 Robot/NC 65 | . 20 15 30 Destroy Leader 200 | . 22 82 96 Successful Hack 11 | . . . 11 Destroy Structure 40 | . 30 1 9 Lose Combat Pursuer 240 | . . 150 90 Influence Decreases 1360 | . 120 422 818 Entered New Map 135 | . . 43 92 Time Decay 875 | . 100 329 446 Lost Part 350 | . 20 50 280 Squads Dispatched 8 | . . 2 6 Investigation 3 | . . 2 1 Extermination . | . . . . Reinforcement 5 | . . . 5 Assault . | . . . . Garrison . | . . . . Intercept . | . . . . Searches Triggered . | . . . . Construction Impeded 1 | . . . 1 Haulers Reinforced . | . . . . Active Scanning Responses . | . . . . Cargo Convoy Interrupts . | . . . . Stealth | -11 -10 -9 -8 --------- Run | Yrd Mat Mat Mat Distress Signals 6 | . 1 1 4 Communications Jammed . | . . . . Distress Signals . | . . . . Times Spotted 82 | . 7 27 48 Peak Tracking Total 11 | . 3 8 11 Tactical Retreats 7 | . . 4 3 Traps | -11 -10 -9 -8 ------- Run | Yrd Mat Mat Mat Traps Triggered 5 | . 2 1 2 Indirectly . | . . . . Trap Hack Attempts . | . . . . Triggered . | . . . . Disarmed . | . . . . Reprogrammed . | . . . . Reused . | . . . . Traps Extracted . | . . . . Installed . | . . . . Triggered . | . . . . Machines | -11 -10 -9 -8 ---------- Run | Yrd Mat Mat Mat Machines Disabled . | . . . . Max in Single Turn . | . . . . Machines Repaired . | . . . . Machines Dismantled . | . . . . Machines Sabotaged . | . . . . Overloaded Fab Kills . | . . . . Hacking | -11 -10 -9 -8 --------- Run | Yrd Mat Mat Mat Machines Accessed 6 | . 1 2 3 Terminals 3 | . 1 . 2 Fabricators . | . . . . Repair Stations . | . . . . Recycling Units . | . . . . Scanalyzers 3 | . . 2 1 Garrison Access . | . . . . Total Hacks 22 | . 3 5 14 Successful 12 | . . 3 9 Failed 9 | . 3 1 5 Catastrophic 1 | . 1 . . Database Lockouts 1 | . . 1 . Manual . | . . . . Terminals 14 | . 3 . 11 Fabricators . | . . . . Repair Stations . | . . . . Recycling Units . | . . . . Scanalyzers 8 | . . 5 3 Garrison Access . | . . . . Terminal Hacks 7 | . . . 7 Record 4 | . . . 4 Prototype ID Bank 1 | . . . 1 Emergency Access Points 1 | . . . 1 Dispatch Records 1 | . . . 1 Fabricator Hacks . | . . . . Repair Station Hacks . | . . . . Recycling Unit Hacks . | . . . . Scanalyzer 5 | . . 3 2 Insert Component 1 | . . 1 . Analyze 1 | . . 1 . Retrieve Study 3 | . . 1 2 Garrison Access Hacks . | . . . . Unauthorized Hacks . | . . . . Terminals . | . . . . Fabricators . | . . . . Repair Stations . | . . . . Recycling Units . | . . . . Scanalyzers . | . . . . Garrison Access . | . . . . Data Cores Recovered . | . . . . Used . | . . . . Hacking Detections 4 | . 1 2 1 Full Trace Events 3 | . 1 1 1 Feedback Events . | . . . . Feedback Blocked . | . . . . Robot Schematics Acquired . | . . . . Robots Built . | . . . . Authchips . | . . . . Time . | . . . . Total Robot Build Rating . | . . . . Part Schematics Acquired 1 | . . 1 . Parts Built . | . . . . Authchips . | . . . . Time . | . . . . Total Part Build Rating . | . . . . Part Studies Acquired 3 | . . 1 2 Parts Repaired . | . . . . Time . | . . . . Parts Recycled . | . . . . Recycled Matter . | . . . . Retrieved Matter . | . . . . Retrieved Components . | . . . . Parts Scanalyzed 1 | . . 1 . Part Schematics Acquired 1 | . . 1 . Parts Damaged . | . . . . Bothacking | -11 -10 -9 -8 ------------ Run | Yrd Mat Mat Mat Used RIF Installer . | . . . . Robots Hacked . | . . . . Non-combat . | . . . . Combat . | . . . . Robot Hacks Applied . | . . . . Relay Couplers Released . | . . . . Fabnet Peak Effective % . | . . . . Robots Rewired . | . . . . Allies Hacked . | . . . . Hacks Repelled . | . . . . Allies | -11 -10 -9 -8 -------- Run | Yrd Mat Mat Mat Total Allies . | . . . . Largest Group . | . . . . Highest-Rated Group . | . . . . Highest-Rated Ally . | . . . . Total Orders . | . . . . Ally Attacks . | . . . . Total Damage . | . . . . Kills . | . . . . Allies Corrupted . | . . . . Allies Melted . | . . . . Intel | -11 -10 -9 -8 ------- Run | Yrd Mat Mat Mat Active Infowar (turns) 1132 | . . 455 677 Optics 1107 | . . 455 652 Machine Analysis 25 | . . . 25 Robot Analysis Total . | . . . . Derelict Logs Recovered . | . . . . Drone Launches . | . . . . Drone Recoveries . | . . . . Exploration | -11 -10 -9 -8 ------------- Run | Yrd Mat Mat Mat Turns Passed 2188 | 59 228 791 1110 Spaces Moved 1022 | 42 113 349 518 Core 5 | 2 . 1 2 Treads 108 | . 13 95 . Legs 909 | 40 100 253 516 Wheels . | . . . . Hover . | . . . . Flight . | . . . . Fastest Speed 50 | 50 120 160 100 Average Speed 157 | 116 125 175 154 Slowest Speed 550 | 120 190 350 550 Overloaded Moves . | . . . . Propulsion Burnouts . | . . . . Robots Hopped . | . . . . Potential Cave-ins . | . . . . Cave-ins Triggered . | . . . . Exploration Rate (%) 28 | 3 26 34 51 Regions Visited 3 Branch Regions . Pre-discovered Areas . | . . . . Known Exits Taken 1 | . . 1 . Unknown Exits Taken 2 | 1 1 . . Scrap Searched . | . . . . Spaces Dug . | . . . . Terrain Destroyed 39 | . 30 1 8 Melee . | . . . . Projectile 9 | . . 1 8 AOE 30 | . 30 . . Terrain Rammed . | . . . . Walls Destroyed . | . . . . Machines Disabled . | . . . . Actions | -11 -10 -9 -8 --------- Run | Yrd Mat Mat Mat Total 1317 | 49 148 436 684 Wait 16 | . 1 9 6 Move 1019 | 41 112 348 518 Hop . | . . . . Pick Up 28 | 3 4 8 13 Fast Attach 33 | 5 1 11 16 Attach 22 | . 3 2 17 Detach 9 | . . 4 5 Swap 11 | . 2 2 7 Drop 13 | . . 4 9 Fire 152 | . 25 42 85 Melee . | . . . . Ram . | . . . . Kick 14 | . . 6 8 Crush . | . . . . Escape Stasis . | . . . . Rewire . | . . . . Trap . | . . . . Miscellaneous . | . . . . Route ------- -11/Scrapyard -10/Materials -9/Materials -8/Materials History --------- Turn | Location | Event 24 | -11/Scrapyard | Discovered new exit (range 15) 60 | -11/Scrapyard | Entered Materials 263 | -10/Materials | Discovered new exit (range 13) 288 | -10/Materials | Entered another Materials area 288 | -9/Materials | Evolved 2 slots: Power x1, Utility x1 308 | -9/Materials | Central database locked down 310 | -9/Materials | Build established: Mutant 545 | -9/Materials | Lost 4 parts (1p2n1u) 1045 | -9/Materials | Discovered new exit (range 12) 1077 | -9/Materials | Identified exit to Materials 1079 | -9/Materials | Entered another Materials area 1079 | -8/Materials | Evolved 2 slots: Propulsion x1, Utility x1 1180 | -8/Materials | Lost 3 parts (1p1n1w) 1441 | -8/Materials | Build established: Scavenger-Mutant 1993 | -8/Materials | Lost 7 parts (3p2n1u1w) 2082 | -8/Materials | Core integrity fell below 50% 2175 | -8/Materials | Core integrity fell below 20% 2189 | -8/Materials | Destroyed by H-55 Commando with Gauss Rifle Last Messages --------------- Imp. Heat Sink tumbles out of recycling unit. Enh. Autogun destroyed. Imp. Aluminum Leg destroyed. Critical hit (Burn: +37). Slug penetrates Wall. System Restoration Module destroyed. Aluminum Leg+ destroyed. Deuterium Engine destroyed. Penetrated by Slug. Hvy. Ion Engine destroyed. Core Shielding destroyed. Carbon-fiber Leg+ destroyed. Enh. Autogun destroyed. Aluminum Leg+ destroyed. Critical hit (Burn: +37). Triggered Explosive Trap. An explosion rips through the floor. Aluminum Leg+ destroyed. Critical hit (Burn: +37). The unstable cave ceiling collapses. Map ----- +----------------------------------------------------+ | ????# #??########????????????????????????# | | ????# #??# #?????????????????######## | | ????# #??# #???????????????# | | ????# #??# ! #???????????????# ######### | | ????# #### Y" #?????????????????????????? | | ????# + """ ########+##### ???????????? | | ????# # # ??????????? | | ????# #####"## ??????????? | | ????# ??????????? | | ????############# """#??????????????? | | ????????????????# R"#??????????????? | | ????????????????# """#??????????????? | | ????????????????# #??????????????? | | ??????????????### +??????????????? | | ??????????????+ ####"###??????????????? | | ??????????????####### ##?????????????????????? | | ???????????????####?# #??????????????????????? | | ???????????????#!! ## ##?????????????????????? | | ???????????????#!! Y ##????????????????????? | | ???????????????#!! g +????????????????????? | | ???????????????#!! gY ##????????????????????? | | ???????????????#!! ##g #?????????????????????? | | ???????????????#!! # h #?????????????????????? | | ???????????????###### ##?????????????????????? | | ????????????????????# #??????????????????????? | | ????????????????????#@#??????????????????????? | | ????????????????????# ?????????????????????? | | ????????????????????#### ???????????????????? | | ????????????????????????? ?????????????????? | | ?????????????????????????? +????????????????? | | ????????????????????????????#????????????????? | | ?????????????????????????????????????????????? | | ?????????????????????????????????????????????? | | ?????????????????????????????????????????????? | | ?????????????????????????????????????????????? | | ?????????????????????????????????????????????? | | ?????????????????????????????????????????????? | | ?????????????????????????????????????????????? | | ?????????????????????????????????????????????? | | ?????????????????????????????????????????????? | | ?????????????????????????????????????????????? | | ?????????????????????????????????????????????? | | ?????????????????????????????????????????????? | | ?????????????????????????????????????????????? | | ?????????????????????????????????????????????? | | ?????????????????????????????????????????????? | | ?????????????????????????????????????????????? | | ?????????????????????????????????????????????? | | | | | +----------------------------------------------------+ Best States ------------- Heat Dissipation 31 Energy Generation 25 Energy Capacity 460 Matter Stores 300 Matter Capacity 300 Sight Range 20 Terrain Scan Density 10 Armor Coverage 225 Core Shielding 20 Evasion (%) 55 Core Analysis 6 Recoil Reduction 2 Item Schematics ----------------- Lgt. Armor Plating | -9/Materials | Scanalyzed Robot Schematics ------------------ None Fabricated ------------ Nothing Repaired ---------- Nothing Studied --------- Aluminum Leg | -9/Materials | Hacked Carbon-fiber Leg | -8/Materials | Hacked Lgt. Nuclear Core | -8/Materials | Hacked Alien Tech Used ----------------- None Achievements -------------- None Challenges ------------ None Game ------ Seed ZioniteIonRecalibrator Manual? 0 Play Time 00:37:03 Cumulative 40.0 hours Start 2026.09.17 @ 06:38:32 End 2026.09.17 @ 20:08:25 Sessions 5 Manual Loads 0 Difficulty Rogue Special Mode None Game No. 77 Rogue 77 Adventurer 0 Explorer 0 Win Type - Total 0 Types 0/0/0/0/0/0/0/0/0/0 Lore% 13 Gallery% 25 Achievement% 17 Wizard Run 0 Options --------- Layout 1 ASCII 0 Keyboard 0 Movement Numpad Keybinds 0 Fullscreen 1 Font 32/SmallcapsGlow Map View 50x35 Zoom Use 0% Tactical HUD 0 Map Filters NONE Filters NONE Steam 1 RUN: d51f28a0-34b7-4313-b405-cb80bd081032